fUSD/lending_fUSD_20240814
["ID","MTS","AMOUNT","RATE_DAILY","PERIOD"]
[334806264,1723602641284,-500.0,0.00013698,2]
[334806265,1723602641300,-500.0,0.00013698,2]
[334806266,1723602641316,-500.0,0.00013698,2]
[334806267,1723602641332,-500.0,0.00013698,2]
[334806268,1723602641347,-500.0,0.00013698,2]
[334806269,1723602641362,-312.88262023,0.00013698,2]
[334806270,1723602641378,-500.0,0.00013698,2]
[334806271,1723602641393,-500.0,0.00013698,2]
[334806272,1723602641408,-600.44265779,0.00013698,2]
[334806273,1723602641424,-500.0,0.00013698,2]
[334806274,1723602641441,-502.54505555,0.00013698,2]
[334806275,1723602641456,-501.24004216,0.00013698,2]
[334806276,1723602641470,-500.0,0.00013698,2]
[334806277,1723602641486,-500.0,0.00013698,2]
[334806278,1723602641500,-500.0,0.00013698,2]
[334806279,1723602641514,-500.0,0.00013698,2]
[334806280,1723602641530,-500.0,0.00013698,2]
[334806281,1723602641546,-247.09079083,0.00013698,2]
[334806282,1723602641561,-500.0,0.00013698,2]
[334806283,1723602641578,-500.0,0.00013698,2]
[334806284,1723602641592,-500.0,0.00013698,2]
[334806285,1723602641607,-500.0,0.00013698,2]
[334806286,1723602641620,-500.0,0.00013698,2]
[334806287,1723602641635,-814.81,0.00013698,2]
[334806288,1723602641651,-500.0,0.00013698,2]
[334806289,1723602641665,-500.0,0.00013698,2]
[334806290,1723602641680,-500.0,0.00013698,2]
[334806291,1723602641694,-500.0,0.00013698,2]
[334806292,1723602641709,-944.49,0.00013698,2]
[334806293,1723602641723,-500.0,0.00013698,2]
[334806294,1723602641737,-500.0,0.00013698,2]
[334806295,1723602641973,-500.0,0.00013698,2]
[334806296,1723602642034,-500.9657601,0.00013698,2]
[334806297,1723602642043,-500.0,0.00013698,2]
[334806298,1723602642053,-500.0,0.00013698,2]
[334806299,1723602642062,-500.0,0.00013698,2]
[334806300,1723602642071,-501.63155941,0.00013698,2]
[334806301,1723602642080,-500.0,0.00013698,2]
[334806302,1723602642090,-500.0,0.00013698,2]
[334806303,1723602642099,-500.0,0.00013698,2]
[334806304,1723602642109,-500.0,0.00013698,2]
[334806305,1723602642118,-500.0,0.00013698,2]
[334806306,1723602642127,-500.0,0.00013698,2]
[334806307,1723602642137,-500.84973702,0.00013698,2]
[334806308,1723602642148,-500.0,0.00013698,2]
[334806309,1723602642157,-647.73,0.00013698,2]
[334806310,1723602642166,-500.0,0.00013698,2]
[334806311,1723602642176,-500.0,0.00013698,2]
[334806312,1723602642186,-500.0,0.00013698,2]
[334806313,1723602642195,-500.0,0.00013698,2]
[334806314,1723602642205,-500.0,0.00013698,2]
[334806315,1723602642214,-500.0,0.00013698,2]
[334806316,1723602642224,-157.056626,0.00013698,2]
[334806317,1723602642233,-151.377752,0.00013698,2]
[334806318,1723602642243,-500.0,0.00013698,2]
[334806319,1723602642253,-500.0,0.00013698,2]
[334806320,1723602642262,-500.0,0.00013698,2]
[334806321,1723602642272,-500.0,0.00013698,2]
[334806322,1723602642281,-760.08,0.00013698,2]
[334806323,1723602642290,-500.0,0.00013698,2]
[334806324,1723602642300,-500.0,0.00013698,2]
[334806325,1723602642309,-1038.59,0.00013698,2]
[334806326,1723602642318,-500.0,0.00013698,2]
[334806327,1723602642327,-500.0,0.00013698,2]
[334806328,1723602642337,-500.0,0.00013698,2]
[334806329,1723602642346,-500.0,0.00013698,2]
[334806330,1723602642355,-500.0,0.00013698,2]
[334806331,1723602642365,-298.7886,0.00013698,2]
[334806332,1723602642374,-500.0,0.00013698,2]
[334806333,1723602642384,-1481.13,0.00013698,2]
[334806334,1723602642393,-724.78,0.00013698,2]
[334806335,1723602642404,-500.0,0.00013698,2]
[334806336,1723602642413,-715.39,0.00013698,2]
[334806337,1723602642423,-549.44,0.00013698,2]
[334806338,1723602642432,-634.87,0.00013698,2]
[334806339,1723602642441,-501.48517803,0.00013698,2]
[334806340,1723602642452,-1961.32,0.00013698,2]
[334806341,1723602642461,-500.0,0.00013698,2]
[334806342,1723602642470,-501.37156916,0.00013698,2]
[334806343,1723602642480,-500.59559076,0.00013698,2]
[334806344,1723602642489,-500.0,0.00013698,2]
[334806345,1723602642498,-500.0,0.00013698,2]
[334806346,1723602642508,-501.33038407,0.00013698,2]
[334806347,1723602642517,-500.0,0.00013698,2]
[334806348,1723602642526,-774.59,0.00013698,2]
[334806349,1723602642536,-500.0,0.00013698,2]
[334806350,1723602642546,-500.0,0.00013698,2]
[334806351,1723602642555,-500.0,0.00013698,2]
[334806352,1723602642564,-500.0,0.00013698,2]
[334806353,1723602642578,-500.0,0.00013698,2]
[334806354,1723602642587,-500.0,0.00013698,2]
[334806355,1723602642597,-500.0,0.00013698,2]
[334806356,1723602642607,-500.0,0.00013698,2]
[334806357,1723602642616,-500.0,0.00013698,2]
[334806358,1723602642626,-500.0,0.00013698,2]
[334806359,1723602642635,-759.52,0.00013698,2]
[334806360,1723602642647,-500.0,0.00013698,2]
[334806361,1723602642657,-500.0,0.00013698,2]
[334806362,1723602642666,-500.0,0.00013698,2]
[334806363,1723602642675,-596.28,0.00013698,2]
[334806364,1723602642685,-500.0,0.00013698,2]
[334806365,1723602642696,-509.45,0.00013698,2]
[334806366,1723602642705,-500.0,0.00013698,2]
[334806367,1723602642716,-500.0,0.00013698,2]
[334806368,1723602642725,-500.0,0.00013698,2]
[334806369,1723602642735,-500.0,0.00013698,2]
[334806370,1723602642744,-500.0,0.00013698,2]
[334806371,1723602642754,-639.12,0.00013698,2]
[334806372,1723602642764,-959.04,0.00013698,2]
[334806373,1723602642774,-500.0,0.00013698,2]
[334806374,1723602642783,-500.0,0.00013698,2]
[334806375,1723602642793,-730.45,0.00013698,2]
[334806376,1723602642802,-500.0,0.00013698,2]
[334806377,1723602642811,-513.84,0.00013698,2]
[334806378,1723602642821,-500.33649644,0.00013698,2]
[334806379,1723602642830,-500.0,0.00013698,2]
[334806380,1723602642839,-500.77459587,0.00013698,2]
[334806381,1723602642849,-856.6,0.00013698,2]
[334806382,1723602642858,-684.17,0.00013698,2]
[334806383,1723602642868,-1088.18,0.00013698,2]
[334806384,1723602642877,-510.08651058,0.00013698,2]
[334806385,1723602642887,-500.0,0.00013698,2]
[334806386,1723602642896,-500.0,0.00013698,2]
[334806387,1723602642906,-1396.23,0.00013698,2]
[334806388,1723602642916,-500.0,0.00013698,2]
[334806389,1723602642925,-500.0,0.00013698,2]
[334806390,1723602642934,-500.0,0.00013698,2]
[334806391,1723602642944,-500.0,0.00013698,2]
[334806392,1723602642954,-500.0,0.00013698,2]
[334806393,1723602642964,-500.0,0.00013698,2]
[334806394,1723602642974,-500.0,0.00013698,2]
[334806395,1723602642983,-500.0,0.00013698,2]
[334806396,1723602642994,-500.0,0.00013698,2]
[334806397,1723602643005,-839.11,0.00013698,2]
[334806399,1723602643014,-500.0,0.00013698,2]
[334806400,1723602643025,-500.0,0.00013698,2]
[334806401,1723602643035,-399.43544549,0.00013698,2]
[334806402,1723602643045,-1475.63,0.00013698,2]
[334806403,1723602643055,-500.0,0.00013698,2]
[334806404,1723602643064,-500.0,0.00013698,2]
[334806405,1723602643073,-500.0,0.00013698,2]
[334806406,1723602643082,-500.0,0.00013698,2]
[334806407,1723602643092,-500.0,0.00013698,2]
[334806408,1723602643101,-790.02,0.00013698,2]
[334806409,1723602643111,-500.0,0.00013698,2]
[334806410,1723602643120,-500.0,0.00013698,2]
[334806411,1723602643130,-748.68,0.00013698,2]
[334806412,1723602643139,-500.0,0.00013698,2]
[334806414,1723602643150,-555.06,0.00013698,2]
[334806416,1723602643159,-500.0,0.00013698,2]
[334806418,1723602643168,-736.01,0.00013698,2]
[334806419,1723602643178,-759.76,0.00013698,2]
[334806420,1723602643187,-500.0,0.00013698,2]
[334806421,1723602643196,-500.0,0.00013698,2]
[334806422,1723602643206,-500.0,0.00013698,2]
[334806423,1723602643216,-500.0,0.00013698,2]
[334806424,1723602643225,-500.0,0.00013698,2]
[334806425,1723602643235,-2078.92,0.00013698,2]
[334806426,1723602643244,-500.0,0.00013698,2]
[334806427,1723602643254,-500.0,0.00013698,2]
[334806428,1723602643263,-788.62,0.00013698,2]
[334806429,1723602643273,-500.0,0.00013698,2]
[334806430,1723602643283,-1032.2,0.00013698,2]
[334806431,1723602643292,-500.0,0.00013698,2]
[334806432,1723602643301,-501.86516954,0.00013698,2]
[334806433,1723602643311,-1398.31,0.00013698,2]
[334806434,1723602643319,-500.11289832,0.00013698,2]
[334806436,1723602643329,-500.0,0.00013698,2]
[334806438,1723602643338,-500.74600804,0.00013698,2]
[334806440,1723602643348,-502.80384263,0.00013698,2]
[334806442,1723602643357,-500.0,0.00013698,2]
[334806443,1723602643367,-500.0,0.00013698,2]
[334806444,1723602643376,-500.0,0.00013698,2]
[334806445,1723602643385,-500.0,0.00013698,2]
[334806446,1723602643395,-514.11,0.00013698,2]
[334806447,1723602643404,-500.0,0.00013698,2]
[334806448,1723602643413,-2064.75,0.00013698,2]
[334806449,1723602643423,-2134.73,0.00013698,2]
[334806451,1723602643432,-500.0,0.00013698,2]
[334806452,1723602643443,-500.0,0.00013698,2]
[334806454,1723602643453,-500.0,0.00013698,2]
[334806455,1723602643462,-643.37716507,0.00013698,2]
[334806456,1723602643471,-500.0,0.00013698,2]
[334806457,1723602643481,-530.44,0.00013698,2]
[334806458,1723602643490,-500.0,0.00013698,2]
[334806460,1723602643499,-575.87,0.00013698,2]
[334806461,1723602643509,-752.31,0.00013698,2]
[334806462,1723602643518,-500.0,0.00013698,2]
[334806463,1723602643527,-500.0,0.00013698,2]
[334806464,1723602643535,-500.4068882,0.00013698,2]
[334806465,1723602643544,-1274.53,0.00013698,2]
[334806466,1723602643555,-500.0,0.00013698,2]
[334806467,1723602643566,-500.0,0.00013698,2]
[334806468,1723602643576,-500.0,0.00013698,2]
[334806469,1723602643585,-500.0,0.00013698,2]
[334806470,1723602643595,-501.67461641,0.00013698,2]
[334806471,1723602643604,-623.38,0.00013698,2]
[334806472,1723602643614,-500.0,0.00013698,2]
[334806473,1723602643623,-500.0,0.00013698,2]
[334806474,1723602643632,-500.0,0.00013698,2]
[334806475,1723602643642,-696.41,0.00013698,2]
[334806476,1723602643652,-551.38253551,0.00013698,2]
[334806477,1723602643662,-500.0,0.00013698,2]
[334806478,1723602643671,-500.49258299,0.00013698,2]
[334806479,1723602643680,-525.95,0.00013698,2]
[334806480,1723602643689,-500.0,0.00013698,2]
[334806481,1723602643698,-500.0,0.00013698,2]
[334806482,1723602643707,-500.0,0.00013698,2]
[334806483,1723602643718,-559.57,0.00013698,2]
[334806484,1723602643727,-500.0,0.00013698,2]
[334806485,1723602643736,-500.0,0.00013698,2]
[334806486,1723602643745,-500.0,0.00013698,2]
[334806487,1723602643755,-501.83486366,0.00013698,2]
[334806488,1723602643764,-771.34,0.00013698,2]
[334806490,1723602643773,-500.0,0.00013698,2]
[334806491,1723602643782,-500.40984489,0.00013698,2]
[334806492,1723602643792,-500.0,0.00013698,2]
[334806493,1723602643801,-500.0,0.00013698,2]
[334806494,1723602643810,-500.0,0.00013698,2]
[334806495,1723602643820,-592.36,0.00013698,2]
[334806496,1723602643830,-500.0,0.00013698,2]
[334806497,1723602643839,-500.0,0.00013698,2]
[334806498,1723602643848,-1944.59,0.00013698,2]
[334806499,1723602643858,-500.7063088,0.00013698,2]
[334806500,1723602643867,-500.0,0.00013698,2]
[334806501,1723602643877,-500.0,0.00013698,2]
[334806502,1723602643886,-501.6611939,0.00013698,2]
[334806503,1723602643897,-544.51,0.00013698,2]
[334806504,1723602643907,-500.66550965,0.00013698,2]
[334806506,1723602643916,-500.0,0.00013698,2]
[334806507,1723602643925,-500.0,0.00013698,2]
[334806508,1723602643936,-599.37,0.00013698,2]
[334806509,1723602643946,-500.0,0.00013698,2]
[334806510,1723602643957,-535.2,0.00013698,2]
[334806511,1723602643971,-500.0,0.00013698,2]
[334806512,1723602643981,-500.0,0.00013698,2]
[334806513,1723602643991,-1600.56,0.00013698,2]
[334806514,1723602644000,-500.0,0.00013698,2]
[334806515,1723602644010,-1000.0,0.00013698,2]
[334806516,1723602644020,-500.0,0.00013698,2]
[334806517,1723602644030,-500.0,0.00013698,2]
[334806518,1723602644041,-503.42489243,0.00013698,2]
[334806519,1723602644050,-500.0,0.00013698,2]
[334806520,1723602644060,-500.0,0.00013698,2]
[334806521,1723602644070,-883.73,0.00013698,2]
[334806522,1723602644079,-500.0,0.00013698,2]
[334806523,1723602644089,-500.0,0.00013698,2]
[334806524,1723602644098,-680.02,0.00013698,2]
[334806525,1723602644108,-500.0,0.00013698,2]
[334806526,1723602644117,-578.02,0.00013698,2]
[334806527,1723602644127,-500.0,0.00013698,2]
[334806528,1723602644136,-500.0,0.00013698,2]
[334806529,1723602644147,-500.0,0.00013698,2]
[334806530,1723602644157,-500.0,0.00013698,2]
[334806531,1723602644166,-500.0,0.00013698,2]
[334806532,1723602644176,-500.42913003,0.00013698,2]
[334806533,1723602644186,-500.0,0.00013698,2]
[334806534,1723602644195,-500.0,0.00013698,2]
[334806535,1723602644205,-500.0,0.00013698,2]
[334806536,1723602644215,-500.0,0.00013698,2]
[334806537,1723602644224,-585.83,0.00013698,2]
[334806538,1723602644234,-400.0,0.00013698,2]
[334806539,1723602644243,-688.51,0.00013698,2]
[334806540,1723602644253,-500.0,0.00013698,2]
[334806541,1723602644263,-500.0,0.00013698,2]
[334806542,1723602644273,-500.0,0.00013698,2]
[334806543,1723602644282,-500.0,0.00013698,2]
[334806544,1723602644292,-500.0,0.00013698,2]
[334806545,1723602644302,-500.0,0.00013698,2]
[334806546,1723602644311,-500.0,0.00013698,2]
[334806547,1723602644321,-500.0,0.00013698,2]
[334806548,1723602644331,-500.0,0.00013698,2]
[334806549,1723602644341,-500.38856461,0.00013698,2]
[334806550,1723602644350,-500.0,0.00013698,2]
[334806551,1723602644360,-500.0,0.00013698,2]
[334806552,1723602644369,-500.0,0.00013698,2]
[334806553,1723602644379,-751.25,0.00013698,2]
[334806554,1723602644389,-623.29,0.00013698,2]
[334806555,1723602644400,-500.0,0.00013698,2]
[334806556,1723602644410,-500.0,0.00013698,2]
[334806557,1723602644419,-500.71501087,0.00013698,2]
[334806558,1723602644429,-1698.43,0.00013698,2]
[334806559,1723602644438,-500.0,0.00013698,2]
[334806560,1723602644448,-500.0,0.00013698,2]
[334806561,1723602644457,-541.4,0.00013698,2]
[334806562,1723602644467,-500.0,0.00013698,2]
[334806563,1723602644476,-500.0,0.00013698,2]
[334806564,1723602644486,-500.0,0.00013698,2]
[334806565,1723602644495,-500.0,0.00013698,2]
[334806566,1723602644505,-500.0,0.00013698,2]
[334806567,1723602644514,-500.0,0.00013698,2]
[334806568,1723602644524,-500.0,0.00013698,2]
[334806569,1723602644533,-500.26460821,0.00013698,2]
[334806570,1723602644542,-500.0,0.00013698,2]
[334806571,1723602644552,-500.0,0.00013698,2]
[334806572,1723602644561,-500.29847222,0.00013698,2]
[334806573,1723602644574,-644.69,0.00013698,2]
[334806574,1723602644583,-400.41134243,0.00013698,2]
[334806575,1723602644592,-500.0,0.00013698,2]
[334806576,1723602644601,-599.99,0.00013698,2]
[334806577,1723602644612,-1649.11,0.00013698,2]
[334806578,1723602644621,-500.0,0.00013698,2]
[334806579,1723602644631,-500.0,0.00013698,2]
[334806580,1723602644641,-500.0,0.00013698,2]
[334806581,1723602644653,-500.0,0.00013698,2]
[334806582,1723602644663,-219.00618115,0.00013698,2]
[334806583,1723602644673,-500.0,0.00013698,2]
[334806584,1723602644682,-500.0,0.00013698,2]
[334806585,1723602644692,-500.0,0.00013698,2]
[334806586,1723602644701,-500.0,0.00013698,2]
[334806587,1723602644710,-500.0,0.00013698,2]
[334806588,1723602644720,-500.0,0.00013698,2]
[334806589,1723602644730,-500.0,0.00013698,2]
[334806590,1723602644740,-500.0,0.00013698,2]
[334806591,1723602644749,-500.0,0.00013698,2]
[334806592,1723602644759,-567.46,0.00013698,2]
[334806593,1723602644769,-669.56,0.00013698,2]
[334806594,1723602644778,-500.0,0.00013698,2]
[334806595,1723602644788,-500.22807401,0.00013698,2]
[334806596,1723602644798,-500.0,0.00013698,2]
[334806597,1723602644808,-508.78,0.00013698,2]
[334806598,1723602644818,-500.0,0.00013698,2]
[334806599,1723602644828,-2065.29,0.00013698,2]
[334806600,1723602644838,-500.0,0.00013698,2]
[334806601,1723602644848,-500.0,0.00013698,2]
[334806602,1723602644858,-500.0,0.00013698,2]
[334806603,1723602644867,-300.0,0.00013698,2]
[334806604,1723602644876,-587.56,0.00013698,2]
[334806605,1723602644886,-500.0,0.00013698,2]
[334806606,1723602644896,-500.0,0.00013698,2]
[334806607,1723602644914,-1413.27,0.00013698,2]
[334806608,1723602644924,-500.0,0.00013698,2]
[334806609,1723602644934,-500.0,0.00013698,2]
[334806610,1723602644943,-500.0,0.00013698,2]
[334806611,1723602644953,-500.36709181,0.00013698,2]
[334806612,1723602644962,-500.0,0.00013698,2]
[334806613,1723602644972,-500.0,0.00013698,2]
[334806614,1723602644982,-500.0,0.00013698,2]
[334806615,1723602644992,-498.1188281,0.00013698,2]
[334806616,1723602645001,-501.27694809,0.00013698,2]
[334806617,1723602645011,-500.0,0.00013698,2]
[334806618,1723602645227,-677.97,0.00013698,2]
[334806619,1723602645244,-500.0,0.00013698,2]
[334806620,1723602645255,-501.96524867,0.00013698,2]
[334806621,1723602645264,-500.0,0.00013698,2]
[334806622,1723602645274,-1454.7,0.00013698,2]
[334806623,1723602645283,-500.0,0.00013698,2]
[334806624,1723602645293,-500.0,0.00013698,2]
[334806625,1723602645303,-1891.58,0.00013698,2]
[334806626,1723602645313,-545.02,0.00013698,2]
[334806627,1723602645323,-589.4,0.00013698,2]
[334806628,1723602645332,-500.0,0.00013698,2]
[334806629,1723602645342,-500.0,0.00013698,2]
[334806630,1723602645351,-1076.83,0.00013698,2]
[334806631,1723602645362,-500.0,0.00013698,2]
[334806632,1723602645372,-500.0,0.00013698,2]
[334806633,1723602645382,-505.42,0.00013698,2]
[334806634,1723602645391,-500.0,0.00013698,2]
[334806635,1723602645403,-500.0,0.00013698,2]
[334806636,1723602645413,-829.93,0.00013698,2]
[334806637,1723602645424,-500.0,0.00013698,2]
[334806638,1723602645434,-500.0,0.00013698,2]
[334806639,1723602645444,-1153.14,0.00013698,2]
[334806640,1723602645454,-1200.57,0.00013698,2]
[334806641,1723602645464,-500.0,0.00013698,2]
[334806642,1723602645473,-841.45,0.00013698,2]
[334806643,1723602645483,-500.0,0.00013698,2]
[334806644,1723602645493,-500.0,0.00013698,2]
[334806645,1723602645503,-525.92,0.00013698,2]
[334806646,1723602645513,-500.0,0.00013698,2]
[334806647,1723602645523,-500.0,0.00013698,2]
[334806648,1723602645532,-500.0,0.00013698,2]
[334806649,1723602645542,-500.0,0.00013698,2]
[334806650,1723602645552,-458.34893469,0.00013698,2]
[334806651,1723602645562,-500.0,0.00013698,2]
[334806652,1723602645579,-500.0,0.00013698,2]
[334806653,1723602645589,-885.99,0.00013698,2]
[334806654,1723602645599,-500.0,0.00013698,2]
[334806655,1723602645611,-500.0,0.00013698,2]
[334806656,1723602645621,-500.0,0.00013698,2]
[334806657,1723602645631,-500.0,0.00013698,2]
[334806658,1723602645640,-500.0,0.00013698,2]
[334806659,1723602645652,-619.18,0.00013698,2]
[334806660,1723602645662,-432.73584434,0.00013698,2]
[334806661,1723602645671,-731.53,0.00013698,2]
[334806662,1723602645681,-500.0,0.00013698,2]
[334806663,1723602645690,-554.05299467,0.00013698,2]
[334806664,1723602645699,-500.39181359,0.00013698,2]
[334806665,1723602645708,-500.0,0.00013698,2]
[334806666,1723602645718,-747.97,0.00013698,2]
[334806667,1723602645727,-501.40151819,0.00013698,2]
[334806668,1723602645738,-500.0,0.00013698,2]
[334806669,1723602645747,-602.57682686,0.00013698,2]
[334806670,1723602645757,-500.0,0.00013698,2]
[334806671,1723602645767,-500.0,0.00013698,2]
[334806672,1723602645776,-500.0,0.00013698,2]
[334806673,1723602645786,-500.0,0.00013698,2]
[334806674,1723602645796,-500.0,0.00013698,2]
[334806675,1723602645805,-500.0,0.00013698,2]
[334806676,1723602645815,-500.0,0.00013698,2]
[334806677,1723602645824,-1032.17,0.00013698,2]
[334806678,1723602645834,-500.0,0.00013698,2]
[334806679,1723602645843,-500.0,0.00013698,2]
[334806680,1723602645853,-500.0,0.00013698,2]
[334806681,1723602645862,-500.0,0.00013698,2]
[334806682,1723602645871,-1280.08,0.00013698,2]
[334806683,1723602645881,-961.87,0.00013698,2]
[334806684,1723602645891,-544.97138643,0.00013698,2]
[334806685,1723602645902,-500.0,0.00013698,2]
[334806686,1723602645912,-578.13,0.00013698,2]
[334806687,1723602645921,-510.13,0.00013698,2]
[334806688,1723602645931,-521.42,0.00013698,2]
[334806689,1723602645941,-500.0,0.00013698,2]
[334806690,1723602645951,-500.0,0.00013698,2]
[334806691,1723602645960,-500.0,0.00013698,2]
[334806692,1723602645971,-397.74061724,0.00013698,2]
[334806693,1723602645980,-500.0,0.00013698,2]
[334806694,1723602645991,-500.0,0.00013698,2]
[334806695,1723602646001,-500.51796628,0.00013698,2]
[334806696,1723602646010,-500.0,0.00013698,2]
[334806697,1723602646019,-500.0,0.00013698,2]
[334806698,1723602646030,-504.15609989,0.00013698,2]
[334806699,1723602646039,-1525.29,0.00013698,2]
[334806700,1723602646049,-500.0,0.00013698,2]
[334806701,1723602646059,-2385.46,0.00013698,2]
[334806702,1723602646069,-500.0,0.00013698,2]
[334806703,1723602646079,-4312.41,0.00013698,2]
[334806704,1723602646089,-500.0,0.00013698,2]
[334806705,1723602646099,-501.9612129,0.00013698,2]
[334806706,1723602646109,-500.0,0.00013698,2]
[334806707,1723602646120,-915.83,0.00013698,2]
[334806708,1723602646130,-500.0,0.00013698,2]
[334806709,1723602646140,-500.0,0.00013698,2]
[334806710,1723602646151,-500.0,0.00013698,2]
[334806711,1723602646161,-500.0,0.00013698,2]
[334806712,1723602646171,-534.86,0.00013698,2]
[334806713,1723602646180,-500.0,0.00013698,2]
[334806714,1723602646190,-500.0,0.00013698,2]
[334806715,1723602646200,-842.65,0.00013698,2]
[334806716,1723602646210,-626.3,0.00013698,2]
[334806717,1723602646220,-500.0,0.00013698,2]
[334806719,1723602646230,-500.0,0.00013698,2]
[334806721,1723602646240,-2638.2,0.00013698,2]
[334806723,1723602646250,-500.0,0.00013698,2]
[334806725,1723602646260,-500.0,0.00013698,2]
[334806727,1723602646270,-500.0,0.00013698,2]
[334806729,1723602646280,-500.0,0.00013698,2]
[334806731,1723602646290,-500.0,0.00013698,2]
[334806732,1723602646301,-500.0,0.00013698,2]
[334806733,1723602646310,-1609.59,0.00013698,2]
[334806734,1723602646320,-2782.48,0.00013698,2]
[334806735,1723602646330,-500.0,0.00013698,2]
[334806736,1723602646340,-500.0,0.00013698,2]
[334806737,1723602646350,-500.0,0.00013698,2]
[334806738,1723602646360,-530.19743826,0.00013698,2]
[334806739,1723602646369,-500.0,0.00013698,2]
[334806740,1723602646379,-500.0,0.00013698,2]
[334806741,1723602646388,-500.0,0.00013698,2]
[334806742,1723602646399,-500.0,0.00013698,2]
[334806743,1723602646408,-310.00998957,0.00013698,2]
[334806744,1723602646418,-500.0,0.00013698,2]
[334806745,1723602646428,-500.0,0.00013698,2]
[334806746,1723602646437,-500.0,0.00013698,2]
[334806747,1723602646447,-500.0,0.00013698,2]
[334806748,1723602646456,-636.4,0.00013698,2]
[334806749,1723602646466,-500.0,0.00013698,2]
[334806750,1723602646475,-5329.46,0.00013698,2]
[334806751,1723602646485,-500.0,0.00013698,2]
[334806752,1723602646494,-500.0,0.00013698,2]
[334806753,1723602646504,-1034.2,0.00013698,2]
[334806754,1723602646514,-2907.46,0.00013698,2]
[334806755,1723602646523,-500.0,0.00013698,2]
[334806756,1723602646532,-500.0,0.00013698,2]
[334806757,1723602646541,-562.7,0.00013698,2]
[334806758,1723602646550,-1210.81,0.00013698,2]
[334806759,1723602646560,-500.0,0.00013698,2]
[334806760,1723602646573,-500.0,0.00013698,2]
[334806761,1723602646583,-500.0,0.00013698,2]
[334806762,1723602646592,-500.0,0.00013698,2]
[334806763,1723602646602,-500.0,0.00013698,2]
[334806764,1723602646611,-836.69,0.00013698,2]
[334806765,1723602646620,-500.0,0.00013698,2]
[334806766,1723602646630,-500.0,0.00013698,2]
[334806767,1723602646641,-500.0,0.00013698,2]
[334806768,1723602646655,-500.0,0.00013698,2]
[334806769,1723602646664,-667.48,0.00013698,2]
[334806770,1723602646673,-4981.44,0.00013698,2]
[334806771,1723602646683,-1963.06,0.00013698,2]
[334806772,1723602646692,-500.0,0.00013698,2]
[334806773,1723602646701,-500.0,0.00013698,2]
[334806774,1723602646710,-500.0,0.00013698,2]
[334806775,1723602646719,-770.56,0.00013698,2]
[334806776,1723602646728,-2526.98,0.00013698,2]
[334806777,1723602646737,-500.0,0.00013698,2]
[334806778,1723602646747,-949.12,0.00013698,2]
[334806780,1723602646756,-500.0,0.00013698,2]
[334806781,1723602646765,-1359.66,0.00013698,2]
[334806782,1723602646774,-500.0,0.00013698,2]
[334806783,1723602646784,-500.0,0.00013698,2]
[334806784,1723602646794,-500.0,0.00013698,2]